Workbook

Sheet Template_Inverted (hidden)
A1: =UPPER(MID(CELL("filename",A1),FIND("[",CELL("filename",A1))+1,FIND("]",CELL("filename",A1))-FIND("[",CELL("filename",A1))-6)) -> RPA PROCESS EVALUATION TOOL_V1.0
A2: =MID(CELL("filename",B2),FIND("]",CELL("filename",B2))+1,LEN(CELL("filename",B2))) -> Template_Inverted

Sheet Contents
A1: =UPPER(MID(CELL("filename",A1),FIND("[",CELL("filename",A1))+1,FIND("]",CELL("filename",A1))-FIND("[",CELL("filename",A1))-6)) -> RPA PROCESS EVALUATION TOOL_V1.0
A2: =MID(CELL("filename",B2),FIND("]",CELL("filename",B2))+1,LEN(CELL("filename",B2))) -> Contents
I3: Use the buttons below to navigate to the respective worksheets
B31: // End of sheet

Sheet Overview
A1: =UPPER(MID(CELL("filename",A1),FIND("[",CELL("filename",A1))+1,FIND("]",CELL("filename",A1))-FIND("[",CELL("filename",A1))-6)) -> RPA PROCESS EVALUATION TOOL_V1.0
A2: =MID(CELL("filename",B2),FIND("]",CELL("filename",B2))+1,LEN(CELL("filename",B2))) -> Overview
C6: Please refer to the full guidance document located here.
C8: Purpose
C9: The process evaluation tool has been designed to offer guidance to NHS organisations in determining the potential net benefits from using RPA to automate a business process. The tool calculates the potential complexity to automate a process versus its potential benefits.
C11: How it works
C12: The tool centres around two input sheets, I_Settings and I_Processes which ask the user a number of questions about an existing process. From these questions, the tool determines the amount of development time required to achieve automation. This drives a complexity rating. A benefits rating is determined by further questions and uses the scoring in the C_Scoring sheet to weight the outcome.
C14: Tool outputs
C15: The tool uses the answers given by the user in I_Processes to populate the two output sheets, O_Ratings and O_Financials. The two sheets display the matrix of complxity vs benefits and the NPVs of automating the processes, respectively.
B17: // End of sheet

Sheet VersionControl
A1: =UPPER(MID(CELL("filename",A1),FIND("[",CELL("filename",A1))+1,FIND("]",CELL("filename",A1))-FIND("[",CELL("filename",A1))-6)) -> RPA PROCESS EVALUATION TOOL_V1.0
A2: =MID(CELL("filename",B2),FIND("]",CELL("filename",B2))+1,LEN(CELL("filename",B2))) -> VersionControl
C6: VERSION CONTROL TABLE
C7: # | D7: Version | E7: Timestamp | F7: Committer | G7: Description
C8: 1 | D8: 1 | E8: 2018-10-04T18:27:33.010 | F8: Oli Morris | G8: Finalised first release
B24: // End of sheet

Sheet I_Settings
A1: =UPPER(MID(CELL("filename",A1),FIND("[",CELL("filename",A1))+1,FIND("]",CELL("filename",A1))-FIND("[",CELL("filename",A1))-6)) -> RPA PROCESS EVALUATION TOOL_V1.0
A2: =MID(CELL("filename",B2),FIND("]",CELL("filename",B2))+1,LEN(CELL("filename",B2))) -> I_Settings
B6: Settings
C8: Include the "Example process"?
C10: Working hours per day | D10: 7.5
C11: Working days per year | D11: =(5*52)-8-27 -> 225
C13: Virtual Worker to human FTE equivalent | D13: 8
C14: Developer cost per day (-ve) | D14: -600
C16: Data sizes (rows) - Memo | D16: < 500
D17: 500-2,500
D18: 2,500+
B20: // End of sheet

Sheet I_Processes
A1: =UPPER(MID(CELL("filename",A1),FIND("[",CELL("filename",A1))+1,FIND("]",CELL("filename",A1))-FIND("[",CELL("filename",A1))-6)) -> RPA PROCESS EVALUATION TOOL_V1.0
A2: =MID(CELL("filename",B2),FIND("]",CELL("filename",B2))+1,LEN(CELL("filename",B2))) -> I_Processes
B6: 2 | E6: 1 | F6: =E6+1 -> 2
B8: Process definition
C10: Process name | E10: Example process
C11: Description | E11: An example process
B13: Process outline
E15: =IF(E10="","Untitled",E10) -> Example process | F15: =IF(F10="","Untitled",F10) -> Untitled
B16: Input | C16: % of process that can be automated | E16: 0.85
C17: Time taken to complete single process (hours) | E17: =5/60 -> 0.08333333333
C18: Times process is completed per year | E18: 80000
C19: FTEs involved in process | D19: i | E19: 8
C20: Cost per FTE (per year) (-ve) | E20: -30000
C21: Non pay costs (per year) (-ve) | E21: -15000
B23: Output | C23: Productivity saved per year (hours) | E23: =E18*E17*E16 -> 5666.666667 | F23: =F18*F17*F16 -> 0
C24: Productivity saved per year (cost) | E24: =ABS(E23*(E20/(Settings_WorkingDays*Settings_WorkingHours))) -> 100740.7407 | F24: =ABS(F23*(F20/(Settings_WorkingDays*Settings_WorkingHours))) -> 0
C25: Virtual Worker licences required | E25: =IFERROR(ROUNDUP(E19/Settings_VirtualWorkerFTE,0),0) -> 1 | F25: =IFERROR(ROUNDUP(F19/Settings_VirtualWorkerFTE,0),0) -> 0
C26: FTE utilisation | E26: =IFERROR((E17*E18)/(E19*Settings_WorkingHours*Settings_WorkingDays),0) -> 0.4938271605 | F26: =IFERROR((F17*F18)/(F19*Settings_WorkingHours*Settings_WorkingDays),0) -> 0
C27: FTEs to retain after automation | E27: =ROUNDUP((E19-E16*E19)*E26,0) -> 1 | F27: =ROUNDUP((F19-F16*F19)*F26,0) -> 0
C28: FTE costs saved (per year) | E28: =ABS((E19-E27)*E20) -> 210000 | F28: =ABS((F19-F27)*F20) -> 0
B30: Process complexity
E32: =E$15 -> Example process | F32: =F$15 -> Untitled
B33: Input | C33: Number of applications involved
C34: Simple application | D34: i | E34: 2
C35: Complex application | D35: i | E35: 2
C36: Citrix application | D36: i | E36: 0
C38: Number of screens involved | D38: i
C39: Simple application | E39: 6
C40: Complex application | E40: 1
C41: Citrix application | E41: 0
C43: Data processing | D43: i
C44: Simple | D44: i | E44: 3
C45: Complex | D45: i | E45: 1
C47: Business logic | D47: i
C48: Simple | D48: i | E48: 1
C49: Complex | D49: i | E49: 1
C51: Data size (records/rows) | D51: i | E51: < 500
B53: Output | C53: Estimated development effort - Low | E53: =ROUNDUP(C_Complexity!E35,0) -> 25 | F53: =ROUNDUP(C_Complexity!F35,0) -> 0
C54: Estimated development effort - High | E54: =ROUNDUP(C_Complexity!E36,0) -> 43 | F54: =ROUNDUP(C_Complexity!F36,0) -> 0
C55: Estimated development cost - Low | E55: =ROUNDUP(E53*Settings_DeveloperCost,-2) -> -15000 | F55: 0
C56: Estimated development cost - High | E56: -25800 | F56: 0
B58: Process benefits and costs
E60: =E$15 -> Example process | F60: =F$15 -> Untitled
B61: Input | C61: Benefits (+ve) | E61: =E28 -> 210000
C63: Project costs - Non-recurrent (-ve)
C64: RPA development | E64: =E56 -> -25800
C65: PMO | E65: -1000
C66: Training | E66: 0
C67: Other | E67: 0
C69: Ongoing costs (-ve)
C70: RPA licences | E70: =-8000*E25 -> -8000
C71: Cloud hosting | E71: -2000
C72: Maintenance and support | E72: =-500*5 -> -2500
C73: Other
B75: Output | C75: Year One Gain/(Loss) | E75: =SUM(E61,E64:E67,E70:E73) -> 170700 | F75: =SUM(F61,F64:F67,F70:F73) -> 0
C76: Benefit as % of existing costs | E76: =IFERROR(E75/-(E19*E20+E21),0) -> 0.6694117647 | F76: =IFERROR(F75/-(F19*F20+F21),0) -> 0
C77: Payback period | E77: =IFERROR(ROUNDUP(-SUM(E64:E67)/((E61+SUM(E70:E73))/12),0),0) -> 2 | F77: =IFERROR(ROUNDUP(-SUM(F64:F67)/((F61+SUM(F70:F73))/12),0),0) -> 0
C78: Ongoing Cost : Benefit ratio | E78: =IFERROR(E61/-SUM(E70:E73),1) -> 16.8 | F78: =IFERROR(F61/-SUM(F70:F73),0) -> 0
B80: // End of sheet

Sheet C_Scoring
A1: =UPPER(MID(CELL("filename",A1),FIND("[",CELL("filename",A1))+1,FIND("]",CELL("filename",A1))-FIND("[",CELL("filename",A1))-6)) -> RPA PROCESS EVALUATION TOOL_V1.0
A2: =MID(CELL("filename",B2),FIND("]",CELL("filename",B2))+1,LEN(CELL("filename",B2))) -> C_Scoring
B6: Weights
C8: Input | F8: Weight
C10: Number of applications involved
C11: Simple applications | F11: 1
C12: Complex applications | F12: 1.5
C13: Citrix applications | F13: 3
C15: Data processing
C16: Simple | F16: 0.2
C17: Complex | F17: 1
C19: Business logic
C20: Simple | F20: 0.2
C21: Complex | F21: 1
C23: Error handling | F23: 0.2
C24: Safety multiplier | F24: 1
C26: Output
C28: Benefits as % of existing costs | F28: 2
C29: Payback period (months) | F29: 5
C30: Ongoing cost : Benefit ratio | F30: 1
B32: Scores
C34: Input | D34: Lower Threshold | E34: Upper Threshold | F34: Score
C36: Simple screens involved | D36: 1 | E36: 5 | F36: 0.5
C37: Simple screens involved | D37: 6 | E37: 10 | F37: 1
C38: Simple screens involved | D38: 11 | E38: 10000 | F38: 3
C40: Complex screens involved | D40: 1 | E40: 5 | F40: 1
C41: Complex screens involved | D41: 6 | E41: 10 | F41: 2.5
C42: Complex screens involved | D42: 11 | E42: 10000 | F42: 5
C44: Citrix screens involved | D44: 1 | E44: 5 | F44: 1.5
C45: Citrix screens involved | D45: 6 | E45: 10 | F45: 5
C46: Citrix screens involved | D46: 11 | E46: 10000 | F46: 10
C48: Data size | E48: =INDEX(Settings_DataSizes,1) -> < 500 | F48: 0.33
C49: Data size | E49: =INDEX(Settings_DataSizes,2) -> 500-2,500 | F49: 0.5
C50: Data size | E50: =INDEX(Settings_DataSizes,3) -> 2,500+ | F50: 0.7
B52: Ratings
D54: Lower Threshold | E54: Upper Threshold | F54: Rating
C56: Development effort (days) | E56: 7 | F56: 5
C57: Development effort (days) | D57: =E56+0.1 -> 7.1 | E57: 21 | F57: 4
C58: Development effort (days) | D58: =E57+0.1 -> 21.1 | E58: =E57+21 -> 42 | F58: 3
C59: Development effort (days) | D59: =E58+0.1 -> 42.1 | E59: =E58+14 -> 56 | F59: 2
C60: Development effort (days) | D60: =E59+0.1 -> 56.1 | E60: 1000000 | F60: 1
C62: Benefits as % of existing costs | E62: 0.1 | F62: 1
C63: Benefits as % of existing costs | D63: =E62+0.001 -> 0.101 | E63: 0.3 | F63: 2
C64: Benefits as % of existing costs | D64: =E63+0.001 -> 0.301 | E64: 0.5 | F64: 3
C65: Benefits as % of existing costs | D65: =E64+0.001 -> 0.501 | E65: 0.75 | F65: 4
C66: Benefits as % of existing costs | D66: =E65+0.001 -> 0.751 | E66: 10000 | F66: 5
C68: Payback period (months) | D68: 0 | E68: 12 | F68: 5
C69: Payback period (months) | D69: =E68+0.001 -> 12.001 | E69: 18 | F69: 4
C70: Payback period (months) | D70: =E69+0.001 -> 18.001 | E70: 24 | F70: 3
C71: Payback period (months) | D71: =E70+0.001 -> 24.001 | E71: 36 | F71: 2
C72: Payback period (months) | D72: =E71+0.001 -> 36.001 | E72: 1000000 | F72: 1
C74: Ongoing cost : Benefit ratio | E74: 1 | F74: 1
C75: Ongoing cost : Benefit ratio | D75: =E74+0.01 -> 1.01 | E75: 4 | F75: 2
C76: Ongoing cost : Benefit ratio | D76: =E75+0.1 -> 4.1 | E76: 8 | F76: 3
C77: Ongoing cost : Benefit ratio | D77: =E76+0.1 -> 8.1 | E77: 12 | F77: 4
C78: Ongoing cost : Benefit ratio | D78: =E77+0.1 -> 12.1 | E78: 1000000 | F78: 5
B80: // End of sheet

Sheet C_Complexity
A1: =UPPER(MID(CELL("filename",A1),FIND("[",CELL("filename",A1))+1,FIND("]",CELL("filename",A1))-FIND("[",CELL("filename",A1))-6)) -> RPA PROCESS EVALUATION TOOL_V1.0
A2: =MID(CELL("filename",B2),FIND("]",CELL("filename",B2))+1,LEN(CELL("filename",B2))) -> C_Complexity
B6: Complexity with automating the process
C8: Index | E8: =I_Processes!E$6 -> 1 | F8: =I_Processes!F$6 -> 2
E10: =I_Processes!E15 -> Example process | F10: =I_Processes!F15 -> Untitled
C11: Number of applications involved
C12: Simple application | D12: 1 | E12: =IFERROR(INDEX(Process_AppsInvolved,$D12,E$8)*C_Scoring!$F11,0) -> 2 | F12: =IFERROR(INDEX(Process_AppsInvolved,$D12,F$8)*C_Scoring!$F11,0) -> 0
C13: Complex application | D13: 2 | E13: =IFERROR(INDEX(Process_AppsInvolved,$D13,E$8)*C_Scoring!$F12,0) -> 3 | F13: =IFERROR(INDEX(Process_AppsInvolved,$D13,F$8)*C_Scoring!$F12,0) -> 0
C14: Citrix application | D14: 3 | E14: =IFERROR(INDEX(Process_AppsInvolved,$D14,E$8)*C_Scoring!$F13,0) -> 0 | F14: =IFERROR(INDEX(Process_AppsInvolved,$D14,F$8)*C_Scoring!$F13,0) -> 0
C16: Number of screens involved
C17: Simple application | D17: 1 | E17: =IFERROR(INDEX(Process_ScreensInvolved,$D17,E$8)*LOOKUP(2,1/((INDEX(Process_ScreensInvolved,$D17,E$8)>=C_Scoring!$D36:$D38)*(INDEX(Process_ScreensInvolved,$D17,E$8)<=C_Scoring!$E36:$E38)),C_Scoring!$F36:$F38),0) -> 6 | F17: =IFERROR(INDEX(Process_ScreensInvolved,$D17,F$8)*LOOKUP(2,1/((INDEX(Process_ScreensInvolved,$D17,F$8)>=C_Scoring!$D36:$D38)*(INDEX(Process_ScreensInvolved,$D17,F$8)<=C_Scoring!$E36:$E38)),C_Scoring!$F36:$F38),0) -> 0
C18: Complex application | D18: 2 | E18: =IFERROR(INDEX(Process_ScreensInvolved,$D18,E$8)*LOOKUP(2,1/((INDEX(Process_ScreensInvolved,$D18,E$8)>=C_Scoring!$D40:$D42)*(INDEX(Process_ScreensInvolved,$D18,E$8)<=C_Scoring!$E40:$E42)),C_Scoring!$F40:$F42),0) -> 1 | F18: =IFERROR(INDEX(Process_ScreensInvolved,$D18,F$8)*LOOKUP(2,1/((INDEX(Process_ScreensInvolved,$D18,F$8)>=C_Scoring!$D40:$D42)*(INDEX(Process_ScreensInvolved,$D18,F$8)<=C_Scoring!$E40:$E42)),C_Scoring!$F40:$F42),0) -> 0
C19: Citrix application | D19: 3 | E19: =IFERROR(INDEX(Process_ScreensInvolved,$D19,E$8)*LOOKUP(2,1/((INDEX(Process_ScreensInvolved,$D19,E$8)>=C_Scoring!$D44:$D46)*(INDEX(Process_ScreensInvolved,$D19,E$8)<=C_Scoring!$E44:$E46)),C_Scoring!$F44:$F46),0) -> 0 | F19: =IFERROR(INDEX(Process_ScreensInvolved,$D19,F$8)*LOOKUP(2,1/((INDEX(Process_ScreensInvolved,$D19,F$8)>=C_Scoring!$D44:$D46)*(INDEX(Process_ScreensInvolved,$D19,F$8)<=C_Scoring!$E44:$E46)),C_Scoring!$F44:$F46),0) -> 0
C21: Data processing
C22: Simple | D22: 1 | E22: =IFERROR(INDEX(Process_DataProcessing,$D22,E$8)*C_Scoring!$F16+INDEX(C_Scoring!$F$48:$F$50,MATCH(INDEX(Process_DataSize,,1),C_Scoring!$E$48:$E$50,0))*SUM(E$12:E$14)/SUM(E$12:E$14),0) -> 0.93 | F22: =IFERROR(INDEX(Process_DataProcessing,$D22,F$8)*C_Scoring!$F16+INDEX(C_Scoring!$F$48:$F$50,MATCH(INDEX(Process_DataSize,,1),C_Scoring!$E$48:$E$50,0))*SUM(F$12:F$14)/SUM(F$12:F$14),0) -> 0
C23: Complex | D23: 2 | E23: =IFERROR(INDEX(Process_DataProcessing,$D23,E$8)*C_Scoring!$F17+INDEX(C_Scoring!$F$48:$F$50,MATCH(INDEX(Process_DataSize,,1),C_Scoring!$E$48:$E$50,0))*SUM(E$12:E$14)/SUM(E$12:E$14),0) -> 1.33 | F23: =IFERROR(INDEX(Process_DataProcessing,$D23,F$8)*C_Scoring!$F17+INDEX(C_Scoring!$F$48:$F$50,MATCH(INDEX(Process_DataSize,,1),C_Scoring!$E$48:$E$50,0))*SUM(F$12:F$14)/SUM(F$12:F$14),0) -> 0
C25: Business logic
C26: Simple | D26: 1 | E26: =IFERROR(INDEX(Process_BusinessLogic,$D26,E$8)*C_Scoring!$F20,0) -> 0.2 | F26: =IFERROR(INDEX(Process_BusinessLogic,$D26,F$8)*C_Scoring!$F20,0) -> 0
C27: Complex | D27: 2 | E27: =IFERROR(INDEX(Process_BusinessLogic,$D27,E$8)*C_Scoring!$F21,0) -> 1 | F27: =IFERROR(INDEX(Process_BusinessLogic,$D27,F$8)*C_Scoring!$F21,0) -> 0
C29: Screen cost | E29: =IFERROR(SUM(INDEX(Process_ScreensInvolved,,E$8)),0) -> 7 | F29: =IFERROR(SUM(INDEX(Process_ScreensInvolved,,F$8)),0) -> 0
C30: Error handling | E30: =IFERROR(E29*C_Scoring!$F$23,0) -> 1.4 | F30: =IFERROR(F29*C_Scoring!$F$23,0) -> 0
C31: Safety multiplier | E31: =IFERROR(C_Scoring!$F$24*SUM(E$12:E$14)/SUM(E$12:E$14),0) -> 1 | F31: =IFERROR(C_Scoring!$F$24*SUM(F$12:F$14)/SUM(F$12:F$14),0) -> 0
C33: Data size - impact on testing | E33: =IFERROR((1+INDEX(C_Scoring!$F$48:$F$50,MATCH(INDEX(Process_DataSize,,E$8),C_Scoring!$E$48:$E$50,0)))*SUM(E22:E23)*SUM(E26:E27)*SUM(E12:E14),0) -> 18.0348 | F33: =IFERROR((1+INDEX(C_Scoring!$F$48:$F$50,MATCH(INDEX(Process_DataSize,,F$8),C_Scoring!$E$48:$E$50,0)))*SUM(F22:F23)*SUM(F26:F27)*SUM(F12:F14),0) -> 0
C35: Estimated development effort - Low | E35: =SUM(E12:E31) -> 24.86 | F35: =SUM(F12:F31) -> 0
C36: Estimated development effort - High | E36: =E33+E35 -> 42.8948 | F36: =F33+F35 -> 0
C38: Estimated development effort - Median | E38: =IFERROR(MEDIAN(E35:E36),0) -> 33.8774 | F38: =IFERROR(MEDIAN(F35:F36),0) -> 0
C39: Base rating | E39: =IFERROR(IF(OR(E35=0,E36=0),0,LOOKUP(2,1/((E38>=C_Scoring!$D$56:$D$60)*(E38<=C_Scoring!$E$56:$E$60)),C_Scoring!$F$56:$F$60)),1) -> 3 | F39: =IFERROR(IF(OR(F35=0,F36=0),0,LOOKUP(2,1/((F38>=C_Scoring!$D$56:$D$60)*(F38<=C_Scoring!$E$56:$E$60)),C_Scoring!$F$56:$F$60)),1) -> 0
C40: Lower threshold | E40: =IFERROR(INDEX(C_Scoring!$D$56:$D$60,MATCH(C_Complexity!E39,C_Scoring!$F$56:$F$60,0)),0) -> 21.1 | F40: =IFERROR(INDEX(C_Scoring!$D$56:$D$60,MATCH(C_Complexity!F39,C_Scoring!$F$56:$F$60,0)),0) -> 0
C41: Max threshold | E41: =IFERROR(INDEX(C_Scoring!$E$56:$E$60,MATCH(C_Complexity!E39,C_Scoring!$F$56:$F$60,0)),0) -> 42 | F41: =IFERROR(INDEX(C_Scoring!$E$56:$E$60,MATCH(C_Complexity!F39,C_Scoring!$F$56:$F$60,0)),0) -> 0
C42: Complexity/Ease of Automation rating | E42: =IFERROR(E39+E40/E38,1) -> 3.622834102 | F42: =IFERROR(F39+F40/F38,1) -> 1
B44: // End of sheet

Sheet C_Benefits
A1: =UPPER(MID(CELL("filename",A1),FIND("[",CELL("filename",A1))+1,FIND("]",CELL("filename",A1))-FIND("[",CELL("filename",A1))-6)) -> RPA PROCESS EVALUATION TOOL_V1.0
A2: =MID(CELL("filename",B2),FIND("]",CELL("filename",B2))+1,LEN(CELL("filename",B2))) -> C_Benefits
B6: Benefits from automating the process
C8: Index | E8: =I_Processes!E$6 -> 1 | F8: =I_Processes!F$6 -> 2
D10: Row | E10: =I_Processes!E15 -> Example process | F10: =I_Processes!F15 -> Untitled
C11: Benefits as % of existing costs
C12: Weight | E12: =C_Scoring!$F$28 -> 2 | F12: =C_Scoring!$F$28 -> 2
C13: Score | D13: 2 | E13: =IFERROR(LOOKUP(2,1/((INDEX(Process_Benefits,$D13,E$8)>=C_Scoring!$D$62:$D$66)*(INDEX(Process_Benefits,$D13,E$8)<=C_Scoring!$E$62:$E$66)),C_Scoring!$F$62:$F$66),1) -> 4 | F13: =IFERROR(LOOKUP(2,1/((INDEX(Process_Benefits,$D13,F$8)>=C_Scoring!$D$62:$D$66)*(INDEX(Process_Benefits,$D13,F$8)<=C_Scoring!$E$62:$E$66)),C_Scoring!$F$62:$F$66),1) -> 1
C15: Payback period (months)
C16: Weight | E16: =C_Scoring!$F$29 -> 5 | F16: =C_Scoring!$F$29 -> 5
C17: Score | D17: 3 | E17: =IF(INDEX(Process_Benefits,$D17,E$8)=0,1,IFERROR(LOOKUP(2,1/((INDEX(Process_Benefits,$D17,E$8)>=C_Scoring!$D$68:$D$72)*(INDEX(Process_Benefits,$D17,E$8)<=C_Scoring!$E$68:$E$72)),C_Scoring!$F$68:$F$72),1)) -> 5 | F17: =IF(INDEX(Process_Benefits,$D17,F$8)=0,1,IFERROR(LOOKUP(2,1/((INDEX(Process_Benefits,$D17,F$8)>=C_Scoring!$D$68:$D$72)*(INDEX(Process_Benefits,$D17,F$8)<=C_Scoring!$E$68:$E$72)),C_Scoring!$F$68:$F$72),1)) -> 1
C19: Ongoing cost : Benefit ratio
C20: Weight | E20: =C_Scoring!$F$30 -> 1 | F20: =C_Scoring!$F$30 -> 1
C21: Score | D21: 4 | E21: =LOOKUP(2,1/((INDEX(Process_Benefits,$D21,E$8)>=C_Scoring!$D$74:$D$78)*(INDEX(Process_Benefits,$D21,E$8)<=C_Scoring!$E$74:$E$78)),C_Scoring!$F$74:$F$78) -> 5 | F21: =LOOKUP(2,1/((INDEX(Process_Benefits,$D21,F$8)>=C_Scoring!$D$74:$D$78)*(INDEX(Process_Benefits,$D21,F$8)<=C_Scoring!$E$74:$E$78)),C_Scoring!$F$74:$F$78) -> 1
C23: Weight | E23: =E12+E16+E20 -> 8 | F23: =F12+F16+F20 -> 8
C24: Total score available | E24: =E12*E13+E16*E17+E20*E21 -> 38 | F24: =F12*F13+F16*F17+F20*F21 -> 8
C25: Benefits rating | E25: =IFERROR(MAX(E24/E23,1),1) -> 4.75 | F25: =IFERROR(MAX(F24/F23,1),1) -> 1
B27: // End of sheet

Sheet C_Ratings
A1: =UPPER(MID(CELL("filename",A1),FIND("[",CELL("filename",A1))+1,FIND("]",CELL("filename",A1))-FIND("[",CELL("filename",A1))-6)) -> RPA PROCESS EVALUATION TOOL_V1.0
A2: =MID(CELL("filename",B2),FIND("]",CELL("filename",B2))+1,LEN(CELL("filename",B2))) -> C_Ratings
B6: Benefits from automating the process
C8: # | D8: Process | E8: Complexity | F8: Benefits
C9: 1 | D9: =INDEX(Process_Processes,1,$C9) -> Example process | E9: =INDEX(App_OutputComplexity,,$C9) -> 3.622834102 | F9: =INDEX(App_OutputBenefits,,$C9) -> 4.75
C10: =C9+1 -> 2 | D10: =INDEX(Process_Processes,1,$C10) -> Untitled | E10: =INDEX(App_OutputComplexity,,$C10) -> 1 | F10: =INDEX(App_OutputBenefits,,$C10) -> 1

Sheet C_Financials
A1: =UPPER(MID(CELL("filename",A1),FIND("[",CELL("filename",A1))+1,FIND("]",CELL("filename",A1))-FIND("[",CELL("filename",A1))-6)) -> RPA PROCESS EVALUATION TOOL_V1.0
A2: =MID(CELL("filename",B2),FIND("]",CELL("filename",B2))+1,LEN(CELL("filename",B2))) -> C_Financials
B6: Financial benefits from automation
C8: Index | E8: =I_Processes!E$6 -> 1 | F8: =I_Processes!F$6 -> 2
D10: Row | E10: =I_Processes!E15 -> Example process | F10: =I_Processes!F15 -> Untitled
C11: RPA development | D11: 4 | E11: =INDEX(Process_Financials,$D11,E$8) -> -25800 | F11: 0
C12: PMO | D12: 5 | E12: -1000 | F12: 0
C13: Training | D13: 6 | E13: 0 | F13: 0
C14: Other | D14: 7 | E14: 0 | F14: 0
C15: Total project costs | E15: =SUM(E11:E14) -> -26800 | F15: =SUM(F11:F14) -> 0
C17: Benefits | D17: 1 | E17: =INDEX(Process_Financials,$D17,E$8) -> 210000 | F17: =INDEX(Process_Financials,$D17,F$8) -> 0
C19: RPA licences | D19: 10 | E19: =INDEX(Process_Financials,$D19,E$8) -> -8000 | F19: 0
C20: Cloud hosting | D20: 11 | E20: -2000 | F20: 0
C21: Maintenance and support | D21: 12 | E21: -2500 | F21: 0
C22: Other | D22: 13 | E22: 0 | F22: 0
C23: Total ongoing costs | E23: =SUM(E19:E22) -> -12500 | F23: =SUM(F19:F22) -> 0
B25: // End of sheet

Sheet O_Matrix
A1: =UPPER(MID(CELL("filename",A1),FIND("[",CELL("filename",A1))+1,FIND("]",CELL("filename",A1))-FIND("[",CELL("filename",A1))-6)) -> RPA PROCESS EVALUATION TOOL_V1.0
A2: =MID(CELL("filename",B2),FIND("]",CELL("filename",B2))+1,LEN(CELL("filename",B2))) -> O_Matrix
B8: Ease of automation vs benefits of automation
B35: // End of sheet

Sheet O_Financials
A1: =UPPER(MID(CELL("filename",A1),FIND("[",CELL("filename",A1))+1,FIND("]",CELL("filename",A1))-FIND("[",CELL("filename",A1))-6)) -> RPA PROCESS EVALUATION TOOL_V1.0
A2: =MID(CELL("filename",B2),FIND("]",CELL("filename",B2))+1,LEN(CELL("filename",B2))) -> O_Financials
B6: Financial benefits from automation
C8: Cost of capital | D8: 0.035
C10: All processes
D12: Year 0 | E12: Year 1 | F12: Year 2 | G12: Year 3 | H12: Year 4 | I12: Year 5
C13: Project costs | D13: =SUM(Financials_ProjectCosts) -> -26800
C14: Benefits | E14: =SUM(Financials_Benefits) -> 210000 | F14: =E14 -> 210000 | G14: =F14 -> 210000 | H14: 210000 | I14: 210000
C15: Ongoing costs | E15: =SUM(Financials_OngoingCosts) -> -12500 | F15: =E15 -> -12500 | G15: =F15 -> -12500 | H15: -12500 | I15: -12500
C16: Net impact - Profit/(Loss) | D16: =SUM(D13:D15) -> -26800 | E16: =SUM(E13:E15) -> 197500 | F16: 197500 | G16: 197500 | H16: 197500 | I16: 197500
C18: NPV | E18: =NPV(CostofCapital,E16) -> 190821.256 | F18: =NPV(CostofCapital,E16,F16) -> 375189.6194 | G18: =NPV(CostofCapital,E16,F16,G16) -> 553323.3037 | H18: =NPV(CostofCapital,E16,F16,G16,H16) -> 725433.1437 | I18: =NPV(CostofCapital,E16,F16,G16,H16,I16) -> 891722.8442
C19: ROI % | E19: =IFERROR(E18/-$D$16,0) -> 7.120196121 | F19: =IFERROR(F18/-$D$16,0) -> 13.99961266 | G19: 20.64639193 | H19: 27.06840088 | I19: 33.27324045
C21: Single process
C23: Process | D23: Example process | E23: =IFERROR(MATCH(D23,Process_Processes,0),"") -> 1
D25: Year 0 | E25: Year 1 | F25: Year 2 | G25: Year 3 | H25: Year 4 | I25: Year 5
C26: Project costs | D26: =IFERROR(INDEX(Financials_ProjectCosts,,$E$23),0) -> -26800
C27: Benefits | E27: =IFERROR(INDEX(Financials_Benefits,,$E$23),0) -> 210000 | F27: =E27 -> 210000 | G27: =F27 -> 210000 | H27: 210000 | I27: 210000
C28: Ongoing costs | E28: =IFERROR(INDEX(Financials_OngoingCosts,,$E$23),0) -> -12500 | F28: =E28 -> -12500 | G28: =F28 -> -12500 | H28: -12500 | I28: -12500
C29: Net impact - Profit/(Loss) | D29: =SUM(D26:D28) -> -26800 | E29: =SUM(E26:E28) -> 197500 | F29: =SUM(F26:F28) -> 197500 | G29: =SUM(G26:G28) -> 197500 | H29: =SUM(H26:H28) -> 197500 | I29: =SUM(I26:I28) -> 197500
C31: NPV | E31: =NPV(CostofCapital,(E29+D29)) -> 164927.5362 | F31: =NPV(CostofCapital,E29+D29,F29) -> 349295.8996 | G31: =NPV(CostofCapital,E29+D29,F29,G29) -> 527429.5839 | H31: =NPV(CostofCapital,E29+D29,F29,G29,H29) -> 699539.4239 | I31: =NPV(CostofCapital,E29+D29,F29,G29,H29,I29) -> 865829.1243
C32: ROI % | E32: =IFERROR(E31/-$D$29,0) -> 6.154012546 | F32: =IFERROR(F31/-$D$29,0) -> 13.03342909 | G32: 19.68020836 | H32: 26.10221731 | I32: 32.30705688
B34: // End of sheet
